[Event "Live Chess"]
[Site "Chess.com"]
[Date "2021.02.06"]
[Round "-"]
[White "Evan8435"]
[Black "abhijoym2"]
[Result "0-1"]
[CurrentPosition "8/1p6/4k3/q1K5/1r6/8/2b5/8 w - -"]
[Timezone "UTC"]
[ECO "C50"]
[ECOUrl "https://www.chess.com/openings/Italian-Game-Blackburne-Shilling-Gambit"]
[UTCDate "2021.02.06"]
[UTCTime "20:30:51"]
[WhiteElo "1196"]
[BlackElo "1750"]
[TimeControl "1200+10"]
[Termination "abhijoym2 won by checkmate"]
[StartTime "20:30:51"]
[EndDate "2021.02.06"]
[EndTime "20:40:48"]
[Link "https://www.chess.com/live/game/6472985375"]

1. e4 {[%clk 0:20:06.3]} 1... e5 {[%clk 0:19:54.3]} 2. Nf3 {[%clk 0:20:12.5]} 2... Nc6 {[%clk 0:20:01.2]} 3. Bc4 {[%clk 0:20:18.8]} 3... Nd4 {[%clk 0:19:38.4]} 4. Nc3 {[%clk 0:20:21.8]} 4... Bc5 {[%clk 0:19:41.3]} 5. Nxe5 {[%clk 0:20:28.2]} 5... Qg5 {[%clk 0:19:46.1]} 6. Nf3 {[%clk 0:20:06.9]} 6... Qxg2 {[%clk 0:19:51.7]} 7. Rf1 {[%clk 0:20:13.8]} 7... Nxf3+ {[%clk 0:19:56.4]} 8. Ke2 {[%clk 0:20:02.2]} 8... Nf6 {[%clk 0:19:47.4]} 9. d3 {[%clk 0:19:46.7]} 9... Nd4+ {[%clk 0:19:42.8]} 10. Ke1 {[%clk 0:19:45]} 10... d6 {[%clk 0:19:44.5]} 11. Be3 {[%clk 0:19:51.9]} 11... Nf3+ {[%clk 0:19:47.5]} 12. Ke2 {[%clk 0:19:56.4]} 12... Bxe3 {[%clk 0:19:56.5]} 13. Kxe3 {[%clk 0:20:03.5]} 13... Ng4+ {[%clk 0:19:59.8]} 14. Ke2 {[%clk 0:20:09]} 14... Nd4+ {[%clk 0:20:04.6]} 15. Ke1 {[%clk 0:20:15.6]} 15... Nxh2 {[%clk 0:20:08.2]} 16. Ne2 {[%clk 0:20:07.5]} 16... Qxf1+ {[%clk 0:20:10.5]} 17. Kd2 {[%clk 0:19:58.7]} 17... Nhf3+ {[%clk 0:20:13.5]} 18. Ke3 {[%clk 0:20:01.7]} 18... Qxe2+ {[%clk 0:20:08]} 19. Qxe2 {[%clk 0:20:03.2]} 19... Nxe2 {[%clk 0:20:16.1]} 20. Kxe2 {[%clk 0:20:12.4]} 20... Nd4+ {[%clk 0:20:25]} 21. Ke3 {[%clk 0:20:20.7]} 21... Nxc2+ {[%clk 0:20:32]} 22. Kd2 {[%clk 0:20:20.7]} 22... Nxa1 {[%clk 0:20:41.4]} 23. f4 {[%clk 0:20:21.9]} 23... O-O {[%clk 0:20:43.8]} 24. e5 {[%clk 0:20:29.8]} 24... dxe5 {[%clk 0:20:52.9]} 25. fxe5 {[%clk 0:20:39.1]} 25... Re8 {[%clk 0:21:02.1]} 26. d4 {[%clk 0:20:48]} 26... c5 {[%clk 0:21:10.6]} 27. Bb5 {[%clk 0:20:51.1]} 27... Re7 {[%clk 0:21:14.5]} 28. Kd3 {[%clk 0:20:58.1]} 28... cxd4 {[%clk 0:21:23.2]} 29. Kxd4 {[%clk 0:21:07.4]} 29... Nc2+ {[%clk 0:21:32.3]} 30. Ke4 {[%clk 0:21:13.4]} 30... f5+ {[%clk 0:21:39]} 31. Kd5 {[%clk 0:21:20.2]} 31... Nb4+ {[%clk 0:21:45.8]} 32. Kd6 {[%clk 0:21:27.2]} 32... Re6+ {[%clk 0:21:50.2]} 33. Kc5 {[%clk 0:21:29.1]} 33... Nxa2 {[%clk 0:21:49.5]} 34. Kd4 {[%clk 0:21:35.1]} 34... a6 {[%clk 0:21:56.3]} 35. Bc4 {[%clk 0:21:42.8]} 35... Bd7 {[%clk 0:21:54.6]} 36. Bxa2 {[%clk 0:21:49.1]} 36... Rd8 {[%clk 0:21:58.9]} 37. Bxe6+ {[%clk 0:21:55.4]} 37... Bxe6+ {[%clk 0:22:08.4]} 38. Ke3 {[%clk 0:22:03.7]} 38... Bb3 {[%clk 0:22:17.4]} 39. Kf4 {[%clk 0:22:12.2]} 39... Kf7 {[%clk 0:22:26.9]} 40. Kxf5 {[%clk 0:22:21.3]} 40... g6+ {[%clk 0:22:35.4]} 41. Ke4 {[%clk 0:22:29.6]} 41... Ke6 {[%clk 0:22:45]} 42. Kf4 {[%clk 0:22:38.3]} 42... Rd5 {[%clk 0:22:54.3]} 43. Kg5 {[%clk 0:22:46.1]} 43... Rxe5+ {[%clk 0:23:03.9]} 44. Kh6 {[%clk 0:22:55.5]} 44... Re2 {[%clk 0:23:13.3]} 45. Kxh7 {[%clk 0:23:04.8]} 45... Rxb2 {[%clk 0:23:22.8]} 46. Kxg6 {[%clk 0:23:14]} 46... a5 {[%clk 0:23:31.3]} 47. Kg5 {[%clk 0:23:22.4]} 47... a4 {[%clk 0:23:40.9]} 48. Kf4 {[%clk 0:23:31.9]} 48... a3 {[%clk 0:23:50.3]} 49. Ke4 {[%clk 0:23:41.4]} 49... a2 {[%clk 0:23:59.9]} 50. Kd3 {[%clk 0:23:50.9]} 50... a1=Q {[%clk 0:24:07.8]} 51. Kd4 {[%clk 0:23:58.7]} 51... Qa3 {[%clk 0:24:11.2]} 52. Ke4 {[%clk 0:23:48]} 52... Bc2+ {[%clk 0:24:20.1]} 53. Kd4 {[%clk 0:23:49]} 53... Rb4+ {[%clk 0:24:29]} 54. Kc5 {[%clk 0:23:52.6]} 54... Qa5# {[%clk 0:24:38.3]} 0-1

[Event "Live Chess"]
[Site "Chess.com"]
[Date "2021.02.06"]
[Round "-"]
[White "Phantom_Beast23"]
[Black "Ankur5206"]
[Result "1/2-1/2"]
[CurrentPosition "8/8/6k1/8/5Kb1/8/8/8 b - -"]
[Timezone "UTC"]
[ECO "C50"]
[ECOUrl "https://www.chess.com/openings/Giuoco-Piano-Game-Four-Knights-Game"]
[UTCDate "2021.02.06"]
[UTCTime "20:30:56"]
[WhiteElo "1119"]
[BlackElo "1001"]
[TimeControl "1200+10"]
[Termination "Game drawn by insufficient material"]
[StartTime "20:30:56"]
[EndDate "2021.02.06"]
[EndTime "20:47:09"]
[Link "https://www.chess.com/live/game/6472985966"]

1. e4 {[%clk 0:20:06.6]} 1... e5 {[%clk 0:20:08.3]} 2. Nf3 {[%clk 0:20:15.5]} 2... Nc6 {[%clk 0:20:15.9]} 3. Bc4 {[%clk 0:20:24.2]} 3... Bc5 {[%clk 0:20:23.4]} 4. Nc3 {[%clk 0:20:32.6]} 4... Nf6 {[%clk 0:20:30.3]} 5. Ng5 {[%clk 0:20:38.5]} 5... O-O {[%clk 0:20:38.4]} 6. d3 {[%clk 0:20:47]} 6... h6 {[%clk 0:20:41.7]} 7. h4 {[%clk 0:20:53.9]} 7... d6 {[%clk 0:20:37.9]} 8. Bd2 {[%clk 0:20:42.5]} 8... Ng4 {[%clk 0:20:08.1]} 9. Be3 {[%clk 0:20:36.2]} 9... Bxe3 {[%clk 0:20:04.7]} 10. fxe3 {[%clk 0:20:46.1]} 10... Nxe3 {[%clk 0:20:03.8]} 11. Qe2 {[%clk 0:20:53.7]} 11... Ng4 {[%clk 0:20:01.3]} 12. Bxf7+ {[%clk 0:20:38.7]} 12... Rxf7 {[%clk 0:20:05.7]} 13. Nxf7 {[%clk 0:20:47.3]} 13... Kxf7 {[%clk 0:20:14.5]} 14. Qf3+ {[%clk 0:20:54.2]} 14... Nf6 {[%clk 0:20:18.9]} 15. g4 {[%clk 0:20:56.4]} 15... Bxg4 {[%clk 0:20:02]} 16. Qf2 {[%clk 0:20:52.3]} 16... Nd4 {[%clk 0:20:04.5]} 17. Rg1 {[%clk 0:20:58.9]} 17... Nf3+ {[%clk 0:19:52.9]} 18. Kf1 {[%clk 0:20:59.7]} 18... Nxg1 {[%clk 0:19:57.5]} 19. Qxg1 {[%clk 0:21:09.6]} 19... Be6 {[%clk 0:19:43.3]} 20. Qg3 {[%clk 0:21:08.8]} 20... Nh5 {[%clk 0:19:37]} 21. Qf3+ {[%clk 0:21:09.9]} 21... Qf6 {[%clk 0:19:33.4]} 22. Qf2 {[%clk 0:21:07.5]} 22... Qxf2+ {[%clk 0:19:41]} 23. Kxf2 {[%clk 0:21:17.4]} 23... Ke7 {[%clk 0:19:49.3]} 24. Rg1 {[%clk 0:21:23.4]} 24... Rf8+ {[%clk 0:19:56.5]} 25. Ke3 {[%clk 0:21:30.7]} 25... Rf4 {[%clk 0:19:39.7]} 26. Rh1 {[%clk 0:21:18.6]} 26... c6 {[%clk 0:18:35.5]} 27. Ne2 {[%clk 0:21:21.6]} 27... Rf7 {[%clk 0:18:29.9]} 28. Rg1 {[%clk 0:21:11.5]} 28... d5 {[%clk 0:18:34]} 29. Ng3 {[%clk 0:21:15.2]} 29... Nxg3 {[%clk 0:18:36.8]} 30. Rxg3 {[%clk 0:21:23.1]} 30... dxe4 {[%clk 0:18:41.8]} 31. dxe4 {[%clk 0:21:29.9]} 31... Bxa2 {[%clk 0:18:42.1]} 32. b3 {[%clk 0:21:32.9]} 32... Rf4 {[%clk 0:18:35.6]} 33. Rxg7+ {[%clk 0:21:37.7]} 33... Kf6 {[%clk 0:18:39.8]} 34. Rxb7 {[%clk 0:21:45.8]} 34... Rxh4 {[%clk 0:18:48.6]} 35. Rxa7 {[%clk 0:21:47.9]} 35... Bb1 {[%clk 0:18:57.5]} 36. Kd2 {[%clk 0:21:55.4]} 36... Rh2+ {[%clk 0:18:56.5]} 37. Kc1 {[%clk 0:22:03.4]} 37... Bxc2 {[%clk 0:19:04.2]} 38. Rc7 {[%clk 0:22:03.9]} 38... Bxb3 {[%clk 0:19:02.4]} 39. Rxc6+ {[%clk 0:22:12.8]} 39... Be6 {[%clk 0:19:09.9]} 40. Kd1 {[%clk 0:22:15.2]} 40... Rh4 {[%clk 0:19:16.4]} 41. Rc2 {[%clk 0:22:10.2]} 41... Rxe4 {[%clk 0:19:21.4]} 42. Rf2+ {[%clk 0:22:19.5]} 42... Rf4 {[%clk 0:19:26.8]} 43. Rh2 {[%clk 0:22:26.1]} 43... Kg5 {[%clk 0:19:28]} 44. Rg2+ {[%clk 0:22:33.9]} 44... Bg4+ {[%clk 0:19:30.4]} 45. Ke1 {[%clk 0:22:38.8]} 45... e4 {[%clk 0:19:32.9]} 46. Rg1 {[%clk 0:22:38.6]} 46... e3 {[%clk 0:19:29.9]} 47. Rg3 {[%clk 0:22:39.2]} 47... e2 {[%clk 0:19:35.3]} 48. Re3 {[%clk 0:22:41.5]} 48... h5 {[%clk 0:19:37.9]} 49. Re5+ {[%clk 0:22:45.8]} 49... Rf5 {[%clk 0:19:44.2]} 50. Re3 {[%clk 0:22:53.6]} 50... h4 {[%clk 0:19:41.5]} 51. Kd2 {[%clk 0:22:46.7]} 51... h3 {[%clk 0:19:36.8]} 52. Rxh3 {[%clk 0:22:55.3]} 52... Bxh3 {[%clk 0:19:45.1]} 53. Kxe2 {[%clk 0:23:04.8]} 53... Bg4+ {[%clk 0:19:50.8]} 54. Kd3 {[%clk 0:23:13.2]} 54... Kf6 {[%clk 0:19:56.5]} 55. Ke3 {[%clk 0:23:21.2]} 55... Kg5 {[%clk 0:19:44.6]} 56. Ke4 {[%clk 0:23:26.4]} 56... Rf4+ {[%clk 0:19:44.6]} 57. Ke5 {[%clk 0:23:34.3]} 57... Kg6 {[%clk 0:19:43.7]} 58. Kxf4 {[%clk 0:23:42.3]} 1/2-1/2

[Event "Live Chess"]
[Site "Chess.com"]
[Date "2021.02.06"]
[Round "-"]
[White "SparkyChessTiger2021"]
[Black "thundergamerz"]
[Result "1-0"]
[CurrentPosition "8/8/8/8/7Q/8/1P3K1k/8 b - -"]
[Timezone "UTC"]
[ECO "C50"]
[ECOUrl "https://www.chess.com/openings/Giuoco-Piano-Game-Giuoco-Pianissimo-Italian-Four-Knights-Variation"]
[UTCDate "2021.02.06"]
[UTCTime "20:30:53"]
[WhiteElo "1430"]
[BlackElo "1278"]
[TimeControl "1200+10"]
[Termination "SparkyChessTiger2021 won by checkmate"]
[StartTime "20:30:53"]
[EndDate "2021.02.06"]
[EndTime "20:42:37"]
[Link "https://www.chess.com/live/game/6472986318"]

1. e4 {[%clk 0:20:09]} 1... e5 {[%clk 0:20:03.8]} 2. Nf3 {[%clk 0:20:17.7]} 2... Nc6 {[%clk 0:20:09.8]} 3. Bc4 {[%clk 0:20:25.3]} 3... Bc5 {[%clk 0:20:18.5]} 4. Nc3 {[%clk 0:20:33.5]} 4... Nf6 {[%clk 0:20:27.2]} 5. d3 {[%clk 0:20:42.2]} 5... O-O {[%clk 0:20:36.7]} 6. Bg5 {[%clk 0:20:50.1]} 6... h6 {[%clk 0:20:46.3]} 7. Bh4 {[%clk 0:20:59]} 7... Be7 {[%clk 0:20:53]} 8. O-O {[%clk 0:20:42.6]} 8... d6 {[%clk 0:20:55.9]} 9. h3 {[%clk 0:20:48.8]} 9... Nh5 {[%clk 0:21:00.9]} 10. Bxe7 {[%clk 0:20:46]} 10... Qxe7 {[%clk 0:21:10]} 11. Nd5 {[%clk 0:20:53.9]} 11... Qd8 {[%clk 0:21:10.4]} 12. Nxe5 {[%clk 0:20:56.6]} 12... Nxe5 {[%clk 0:21:12]} 13. Qxh5 {[%clk 0:21:01.1]} 13... c6 {[%clk 0:21:19.1]} 14. Nc3 {[%clk 0:21:01.8]} 14... b5 {[%clk 0:21:26.4]} 15. Bb3 {[%clk 0:21:04.1]} 15... Qg5 {[%clk 0:21:29.4]} 16. Qxg5 {[%clk 0:21:05.1]} 16... hxg5 {[%clk 0:21:37.5]} 17. f4 {[%clk 0:21:09.9]} 17... gxf4 {[%clk 0:21:46]} 18. Rxf4 {[%clk 0:21:16.4]} 18... Be6 {[%clk 0:21:49]} 19. Raf1 {[%clk 0:21:19.9]} 19... Bxb3 {[%clk 0:21:56.5]} 20. axb3 {[%clk 0:21:27.7]} 20... f6 {[%clk 0:22:01.5]} 21. d4 {[%clk 0:21:21.6]} 21... g5 {[%clk 0:22:01.7]} 22. Rf5 {[%clk 0:21:15.4]} 22... Nd7 {[%clk 0:22:08.3]} 23. R1f3 {[%clk 0:21:03.9]} 23... Rf7 {[%clk 0:22:13.7]} 24. Rg3 {[%clk 0:21:06.5]} 24... Raf8 {[%clk 0:22:14.5]} 25. h4 {[%clk 0:20:48.7]} 25... Rg7 {[%clk 0:22:19.5]} 26. hxg5 {[%clk 0:20:49.7]} 26... fxg5 {[%clk 0:22:28.8]} 27. Rxf8+ {[%clk 0:20:53.6]} 27... Kxf8 {[%clk 0:22:37.3]} 28. Rf3+ {[%clk 0:20:59.7]} 28... Ke7 {[%clk 0:22:44.6]} 29. Rf5 {[%clk 0:20:57.8]} 29... g4 {[%clk 0:22:44.9]} 30. Nd1 {[%clk 0:20:19.4]} 30... Nf6 {[%clk 0:22:49.6]} 31. Nf2 {[%clk 0:20:20.1]} 31... Ke6 {[%clk 0:22:58.3]} 32. Kf1 {[%clk 0:20:18]} 32... Nxe4 {[%clk 0:23:06.1]} 33. Rf4 {[%clk 0:20:01.1]} 33... Nxf2 {[%clk 0:23:09]} 34. Kxf2 {[%clk 0:20:05]} 34... Rf7 {[%clk 0:23:13.8]} 35. Rxf7 {[%clk 0:20:12]} 35... Kxf7 {[%clk 0:23:23.4]} 36. Kg3 {[%clk 0:20:20.9]} 36... Kg6 {[%clk 0:23:30]} 37. Kxg4 {[%clk 0:20:30]} 37... Kf6 {[%clk 0:23:39.2]} 38. Kh5 {[%clk 0:20:37.8]} 38... Kg7 {[%clk 0:23:45.2]} 39. g4 {[%clk 0:20:47.2]} 39... Kf7 {[%clk 0:23:49.8]} 40. Kh6 {[%clk 0:20:54]} 40... Kg8 {[%clk 0:23:59]} 41. g5 {[%clk 0:21:01.9]} 41... Kh8 {[%clk 0:24:05.1]} 42. g6 {[%clk 0:20:58.8]} 42... Kg8 {[%clk 0:24:13.2]} 43. c3 {[%clk 0:20:58.2]} 43... a5 {[%clk 0:24:21.7]} 44. Kg5 {[%clk 0:20:57.7]} 44... Kg7 {[%clk 0:24:29.4]} 45. Kf5 {[%clk 0:21:06.2]} 45... c5 {[%clk 0:24:36.6]} 46. dxc5 {[%clk 0:21:11.4]} 46... dxc5 {[%clk 0:24:45.4]} 47. Ke5 {[%clk 0:21:19.3]} 47... b4 {[%clk 0:24:50.7]} 48. cxb4 {[%clk 0:21:23.6]} 48... cxb4 {[%clk 0:24:54.4]} 49. Kd4 {[%clk 0:21:29.4]} 49... Kxg6 {[%clk 0:25:03.6]} 50. Kc4 {[%clk 0:21:38.2]} 50... Kf6 {[%clk 0:25:13.2]} 51. Kb5 {[%clk 0:21:45.6]} 51... Ke6 {[%clk 0:25:22.8]} 52. Kxa5 {[%clk 0:21:54.6]} 52... Kd6 {[%clk 0:25:31.7]} 53. Kxb4 {[%clk 0:22:03.6]} 53... Kc7 {[%clk 0:25:41]} 54. Kc5 {[%clk 0:22:12]} 54... Kb7 {[%clk 0:25:46.5]} 55. Kb5 {[%clk 0:22:20.5]} 55... Ka7 {[%clk 0:25:55.5]} 56. Kc6 {[%clk 0:22:28.9]} 56... Kb8 {[%clk 0:26:04.2]} 57. Kb6 {[%clk 0:22:37.8]} 57... Ka8 {[%clk 0:26:12.2]} 58. b4 {[%clk 0:22:46.2]} 58... Kb8 {[%clk 0:26:20.5]} 59. b5 {[%clk 0:22:55.1]} 59... Kc8 {[%clk 0:26:28.5]} 60. Ka7 {[%clk 0:23:02.5]} 60... Kc7 {[%clk 0:26:37.5]} 61. b6+ {[%clk 0:23:11.7]} 61... Kc8 {[%clk 0:26:46.6]} 62. b7+ {[%clk 0:23:21]} 62... Kc7 {[%clk 0:26:56.1]} 63. b8=Q+ {[%clk 0:23:30.2]} 63... Kc6 {[%clk 0:27:05.4]} 64. Ka6 {[%clk 0:23:38.5]} 64... Kc5 {[%clk 0:27:13.9]} 65. Qb7 {[%clk 0:23:47.7]} 65... Kc4 {[%clk 0:27:20.4]} 66. Qb6 {[%clk 0:23:56.5]} 66... Kd3 {[%clk 0:27:28.8]} 67. Qc5 {[%clk 0:24:05.3]} 67... Kd2 {[%clk 0:27:37.2]} 68. Qc4 {[%clk 0:24:14.1]} 68... Ke3 {[%clk 0:27:46.2]} 69. Qd5 {[%clk 0:24:22.9]} 69... Ke2 {[%clk 0:27:55.1]} 70. Qd4 {[%clk 0:24:31.7]} 70... Kf3 {[%clk 0:28:04.2]} 71. Qe5 {[%clk 0:24:40.6]} 71... Kg4 {[%clk 0:28:13.1]} 72. Qf6 {[%clk 0:24:49.6]} 72... Kh5 {[%clk 0:28:22.3]} 73. Qg7 {[%clk 0:24:58.5]} 73... Kh4 {[%clk 0:28:31.2]} 74. Qg6 {[%clk 0:25:08]} 74... Kh3 {[%clk 0:28:40.2]} 75. Qg5 {[%clk 0:25:17.5]} 75... Kh2 {[%clk 0:28:49.9]} 76. Qg4 {[%clk 0:25:26.5]} 76... Kh1 {[%clk 0:28:59.7]} 77. Kb5 {[%clk 0:25:35.9]} 77... Kh2 {[%clk 0:29:08.6]} 78. Kc4 {[%clk 0:25:45.8]} 78... Kh1 {[%clk 0:29:17.8]} 79. Kd3 {[%clk 0:25:55.7]} 79... Kh2 {[%clk 0:29:27.3]} 80. Ke3 {[%clk 0:26:05.4]} 80... Kh1 {[%clk 0:29:36.9]} 81. Kf2 {[%clk 0:26:15.3]} 81... Kh2 {[%clk 0:29:46.4]} 82. Qh4# {[%clk 0:26:21.3]} 1-0

[Event "Live Chess"]
[Site "Chess.com"]
[Date "2021.02.06"]
[Round "-"]
[White "Sanat2"]
[Black "Eric-100"]
[Result "1-0"]
[CurrentPosition "8/6pk/1R5p/4K3/1P4P1/P4P2/8/7r b - -"]
[Timezone "UTC"]
[ECO "B56"]
[ECOUrl "https://www.chess.com/openings/Sicilian-Defense-Open-Variation-4...Nf6-5.Nc3-e5"]
[UTCDate "2021.02.06"]
[UTCTime "20:31:09"]
[WhiteElo "1329"]
[BlackElo "929"]
[TimeControl "1200+10"]
[Termination "Sanat2 won by resignation"]
[StartTime "20:31:09"]
[EndDate "2021.02.06"]
[EndTime "20:40:32"]
[Link "https://www.chess.com/live/game/6472986653"]

1. e4 {[%clk 0:20:09.2]} 1... c5 {[%clk 0:20:07]} 2. Nf3 {[%clk 0:20:17.4]} 2... d6 {[%clk 0:20:14.4]} 3. d4 {[%clk 0:20:26.5]} 3... cxd4 {[%clk 0:20:22.9]} 4. Nxd4 {[%clk 0:20:35.7]} 4... Nf6 {[%clk 0:20:29.5]} 5. Nc3 {[%clk 0:20:44.4]} 5... e5 {[%clk 0:20:37.8]} 6. Nf3 {[%clk 0:20:52.1]} 6... Be6 {[%clk 0:20:45]} 7. Be2 {[%clk 0:20:54.9]} 7... Be7 {[%clk 0:20:53]} 8. O-O {[%clk 0:21:02.5]} 8... O-O {[%clk 0:21:01.5]} 9. Be3 {[%clk 0:21:10.5]} 9... Nc6 {[%clk 0:21:08.7]} 10. Qd2 {[%clk 0:21:12.1]} 10... Nd7 {[%clk 0:21:03.1]} 11. Ng5 {[%clk 0:21:00.7]} 11... Bxg5 {[%clk 0:20:59.2]} 12. Bxg5 {[%clk 0:21:08.2]} 12... Qc8 {[%clk 0:21:06.2]} 13. Qxd6 {[%clk 0:20:51.6]} 13... Re8 {[%clk 0:21:06]} 14. Nd5 {[%clk 0:20:03.4]} 14... Bxd5 {[%clk 0:21:09.2]} 15. Qxd5 {[%clk 0:20:11.4]} 15... Nb4 {[%clk 0:21:14.4]} 16. Qd2 {[%clk 0:20:02.8]} 16... Qxc2 {[%clk 0:21:16.6]} 17. Qxc2 {[%clk 0:20:00.6]} 17... Nxc2 {[%clk 0:21:24.4]} 18. Rac1 {[%clk 0:20:08.3]} 18... Nb4 {[%clk 0:21:32.3]} 19. a3 {[%clk 0:20:13.9]} 19... Nc6 {[%clk 0:21:38.5]} 20. Rfd1 {[%clk 0:20:22]} 20... Nb6 {[%clk 0:21:44.2]} 21. Bb5 {[%clk 0:20:23]} 21... Rac8 {[%clk 0:21:49.1]} 22. Be3 {[%clk 0:20:17.9]} 22... f6 {[%clk 0:21:12.3]} 23. Bxb6 {[%clk 0:20:12]} 23... axb6 {[%clk 0:21:19.6]} 24. Rd7 {[%clk 0:20:19]} 24... Rb8 {[%clk 0:21:12.1]} 25. Bxc6 {[%clk 0:20:25]} 25... bxc6 {[%clk 0:21:19.9]} 26. Rxc6 {[%clk 0:20:33.9]} 26... Rec8 {[%clk 0:21:28]} 27. Rdc7 {[%clk 0:20:35.5]} 27... Rxc7 {[%clk 0:21:35.5]} 28. Rxc7 {[%clk 0:20:44.6]} 28... Rd8 {[%clk 0:21:43.6]} 29. h3 {[%clk 0:20:50.9]} 29... Rd2 {[%clk 0:21:47.4]} 30. Rc8+ {[%clk 0:20:52.7]} 30... Kf7 {[%clk 0:21:54.7]} 31. Rc7+ {[%clk 0:20:57.4]} 31... Kg6 {[%clk 0:22:02.9]} 32. b4 {[%clk 0:21:01.7]} 32... Ra2 {[%clk 0:22:11.3]} 33. Ra7 {[%clk 0:21:08.5]} 33... f5 {[%clk 0:22:15.7]} 34. exf5+ {[%clk 0:21:11.8]} 34... Kxf5 {[%clk 0:22:22.8]} 35. g4+ {[%clk 0:21:17.5]} 35... Kg6 {[%clk 0:22:29.9]} 36. Kg2 {[%clk 0:21:26.1]} 36... h6 {[%clk 0:22:31.6]} 37. Ra6 {[%clk 0:21:34.6]} 37... Kh7 {[%clk 0:22:38.6]} 38. Kf3 {[%clk 0:21:42.3]} 38... Kh8 {[%clk 0:22:37.2]} 39. Ke3 {[%clk 0:21:47.5]} 39... Kh7 {[%clk 0:22:44.9]} 40. f3 {[%clk 0:21:53.7]} 40... Rh2 {[%clk 0:22:50.8]} 41. Rxb6 {[%clk 0:22:00]} 41... Rxh3 {[%clk 0:22:59.8]} 42. Ke4 {[%clk 0:22:08.9]} 42... Rh1 {[%clk 0:23:00.8]} 43. Kxe5 {[%clk 0:22:16.3]} 1-0

[Event "Live Chess"]
[Site "Chess.com"]
[Date "2021.02.06"]
[Round "-"]
[White "sean330"]
[Black "mydonkey1234567890"]
[Result "1-0"]
[CurrentPosition "R4bk1/ppp2ppp/8/5b2/2P5/2Pr4/PP1N1PPP/R1B3K1 b - -"]
[Timezone "UTC"]
[ECO "C50"]
[ECOUrl "https://www.chess.com/openings/Giuoco-Piano-Game-Giuoco-Pianissimo-Variation-4...Nf6"]
[UTCDate "2021.02.06"]
[UTCTime "20:31:16"]
[WhiteElo "1405"]
[BlackElo "1040"]
[TimeControl "1200+10"]
[Termination "sean330 won by resignation"]
[StartTime "20:31:16"]
[EndDate "2021.02.06"]
[EndTime "20:36:06"]
[Link "https://www.chess.com/live/game/6472987070"]

1. e4 {[%clk 0:20:06.3]} 1... e5 {[%clk 0:20:06.9]} 2. Nf3 {[%clk 0:20:13]} 2... Nc6 {[%clk 0:20:15.4]} 3. Bc4 {[%clk 0:20:21.1]} 3... Nf6 {[%clk 0:20:24]} 4. d3 {[%clk 0:20:26.8]} 4... Bc5 {[%clk 0:20:28.9]} 5. c3 {[%clk 0:20:34.7]} 5... O-O {[%clk 0:20:36.9]} 6. O-O {[%clk 0:20:41.7]} 6... d5 {[%clk 0:20:40.8]} 7. exd5 {[%clk 0:20:48.5]} 7... Nxd5 {[%clk 0:20:50.7]} 8. Re1 {[%clk 0:20:55.1]} 8... Re8 {[%clk 0:20:59.3]} 9. Qb3 {[%clk 0:20:58.8]} 9... Na5 {[%clk 0:21:01.3]} 10. Qd1 {[%clk 0:20:32.2]} 10... Nxc4 {[%clk 0:20:36.8]} 11. dxc4 {[%clk 0:20:38.2]} 11... Nf4 {[%clk 0:20:09.5]} 12. Qxd8 {[%clk 0:20:21.3]} 12... Rxd8 {[%clk 0:20:19.4]} 13. Nxe5 {[%clk 0:20:24.8]} 13... Nd3 {[%clk 0:20:15.7]} 14. Nxd3 {[%clk 0:20:24.5]} 14... Rxd3 {[%clk 0:20:19.5]} 15. Re8+ {[%clk 0:20:25.6]} 15... Bf8 {[%clk 0:20:27.1]} 16. Nd2 {[%clk 0:20:30.6]} 16... Bf5 {[%clk 0:20:24]} 17. Rxa8 {[%clk 0:20:36.9]} 1-0

[Event "Live Chess"]
[Site "Chess.com"]
[Date "2021.02.06"]
[Round "-"]
[White "lighteningcrushers30"]
[Black "lionkingethan"]
[Result "0-1"]
[CurrentPosition "6k1/1p4p1/2p5/4p1bp/1P1p4/1KNP4/P4q2/8 w - -"]
[Timezone "UTC"]
[ECO "C50"]
[ECOUrl "https://www.chess.com/openings/Giuoco-Piano-Game-4.O-O-Nf6"]
[UTCDate "2021.02.06"]
[UTCTime "20:31:14"]
[WhiteElo "1135"]
[BlackElo "1418"]
[TimeControl "1200+10"]
[Termination "lionkingethan won by resignation"]
[StartTime "20:31:14"]
[EndDate "2021.02.06"]
[EndTime "20:40:49"]
[Link "https://www.chess.com/live/game/6472987467"]

1. e4 {[%clk 0:20:06.8]} 1... e5 {[%clk 0:20:06.5]} 2. Nf3 {[%clk 0:20:11.7]} 2... Nc6 {[%clk 0:20:12.7]} 3. Bc4 {[%clk 0:20:19.1]} 3... Bc5 {[%clk 0:20:17.9]} 4. O-O {[%clk 0:20:23.1]} 4... Nf6 {[%clk 0:20:24.8]} 5. Ng5 {[%clk 0:20:27.6]} 5... O-O {[%clk 0:20:32.6]} 6. Nc3 {[%clk 0:20:32]} 6... h6 {[%clk 0:20:39.9]} 7. Nf3 {[%clk 0:20:33.6]} 7... d6 {[%clk 0:20:46.3]} 8. h3 {[%clk 0:20:41.6]} 8... Be6 {[%clk 0:20:53.4]} 9. Bd5 {[%clk 0:20:21.1]} 9... Rb8 {[%clk 0:20:49.3]} 10. d3 {[%clk 0:20:21.1]} 10... Ne7 {[%clk 0:20:49.7]} 11. Bxe6 {[%clk 0:20:09.2]} 11... fxe6 {[%clk 0:20:56.4]} 12. Nb5 {[%clk 0:20:15.3]} 12... c6 {[%clk 0:21:01]} 13. Nc3 {[%clk 0:20:18]} 13... Ng6 {[%clk 0:21:05.4]} 14. h4 {[%clk 0:20:20.9]} 14... h5 {[%clk 0:21:06.3]} 15. Bg5 {[%clk 0:20:27.4]} 15... d5 {[%clk 0:21:08.4]} 16. exd5 {[%clk 0:20:32]} 16... exd5 {[%clk 0:21:16.2]} 17. Na4 {[%clk 0:20:38.8]} 17... Be7 {[%clk 0:21:19]} 18. Re1 {[%clk 0:20:41.3]} 18... Qc7 {[%clk 0:21:14.6]} 19. Bxf6 {[%clk 0:20:37.7]} 19... Rxf6 {[%clk 0:21:19.4]} 20. Qd2 {[%clk 0:20:32.3]} 20... Qd6 {[%clk 0:20:31.9]} 21. Rad1 {[%clk 0:20:20]} 21... Rxf3 {[%clk 0:20:37.2]} 22. gxf3 {[%clk 0:19:57.8]} 22... Nxh4 {[%clk 0:20:45.2]} 23. Kf1 {[%clk 0:19:54.8]} 23... Nxf3 {[%clk 0:20:49.9]} 24. Qe3 {[%clk 0:20:03.6]} 24... Nxe1 {[%clk 0:20:56.7]} 25. Kxe1 {[%clk 0:20:11.9]} 25... Rf8 {[%clk 0:20:49.3]} 26. Kd2 {[%clk 0:20:13.6]} 26... Qg6 {[%clk 0:20:49.7]} 27. Rg1 {[%clk 0:20:13]} 27... Qxg1 {[%clk 0:20:47.9]} 28. Qxa7 {[%clk 0:20:14]} 28... Rxf2+ {[%clk 0:20:51.3]} 29. Kc3 {[%clk 0:20:21]} 29... Rxc2+ {[%clk 0:20:57.4]} 30. Kxc2 {[%clk 0:20:04.8]} 30... Qxa7 {[%clk 0:21:04.3]} 31. Nc3 {[%clk 0:20:04]} 31... Bg5 {[%clk 0:21:09.5]} 32. b4 {[%clk 0:20:11]} 32... Qf2+ {[%clk 0:21:17]} 33. Kb3 {[%clk 0:20:18.6]} 33... d4 {[%clk 0:21:24.7]} 0-1